Cogmind - Beta 15 @@@ ROGUE MODE // 2025.06.22 @ 01:26:16 Player: Dendrocnid Result: Destroyed by H-55 Commando with Assault Rifle Performance ------------- Evolutions (2) 1000 Regions Visited (5) 1000 Robots Destroyed (74) 370 Value Destroyed (3258) 3258 Prototype IDs (4) 80 Alien Tech Used (0) 0 Bonus (885) 885 TOTAL SCORE: 6593 Bonus ------- High Alert Combat Kills 152 Follower Combat Kills 33 Entered Garrisons 200 Used RIF Installer 500 Cogmind --------- Core Integrity 0/550 Matter 300/300 Energy 265/265 System Corruption 16% Temperature Cool (0) Movement Rolling (170) Ox6 Location -8/Materials Parts ------- > --- POWER (1) -------- Reinforced Ion Engine > --- PROPULSION (2) --- Wheel > --- UTILITY (6) ------ Improved Heat Sink High-capacity Storage Unit Advanced Visual Processing Unit Light Armor Plating Light Armor Plating Relay Coupler [Grunt] (28) > --- WEAPON (2) ------- Advanced Assault Cannon Advanced Assault Cannon > --- INVENTORY (20) --- Light Ion Engine Deuterium Engine Advanced Heat Sink Advanced Heat Sink Large Matter Pod (150) Light Armor Plating Relay Coupler [Grunt] (27) Relay Coupler [Brawler] (29) Relay Coupler [Brawler] (26) Relay Coupler [Demolisher] (23) Relay Coupler [Hunter] (18) EM Pulse Cannon Heavy Assault Rifle Advanced Assault Cannon Rocket Launcher Datajack Datajack Katana Peak State ------------ > --- POWER ------------ Light Nuclear Core > --- PROPULSION ------- Armored Wheel Armored Wheel > --- UTILITY ---------- Advanced Heat Sink Cooling System High-capacity Storage Unit Trap Scanner Hacking Suite Trap Extractor > --- WEAPON ----------- Heavy Assault Rifle Rocket Launcher > --- INVENTORY -------- Improved Treads Wheel Armored Wheel Armored Wheel Large Matter Pod Advanced Visual Processing Unit Relay Coupler [Brawler] Relay Coupler [Hunter] EM Pulse Cannon Improved Assault Rifle Light Cannon Datajack Datajack Katana Armageddon Trap Armageddon Trap [Rating: 30] Favorites ----------- Power Ion Engine Engine Ion Engine Power Core Light Nuclear Core Propulsion Wheel Treads Light Treads Wheel Wheel Utility High-capacity Storage Unit Device Heat Sink Storage High-capacity Storage Unit Processor Advanced Visual Processing Unit Hackware Hacking Suite Protection Medium Armor Plating Weapon Light Cannon Energy Gun Medium Laser Energy Cannon EM Pulse Cannon Ballistic Gun Heavy Assault Rifle Ballistic Cannon Light Cannon Launcher Rocket Launcher Slashing Weapon Katana Special Melee Weapon Datajack Build | -11 -10 -9 -8 -8 -8 ------- Run | Yrd Mat Mat Mat Gar Mat Slots Evolved 4 | . . 2 2 . . Power . | . . . . . . Propulsion . | . . . . . . Utility 4 | . . 2 2 . . Weapon . | . . . . . . Parts Attached 59 | 7 7 12 6 21 6 Power 6 | 1 1 2 . 2 . Engine 5 | 1 1 2 . 1 . Core 1 | . . . . 1 . Reactor . | . . . . . . Propulsion 12 | 2 2 2 2 4 . Treads 3 | . 2 . 1 . . Leg . | . . . . . . Wheel 9 | 2 . 2 1 4 . Hover . | . . . . . . Flight . | . . . . . . Utility 20 | 1 2 4 3 7 3 Device 7 | . 1 2 . 4 . Storage 2 | 1 1 . . . . Processor 2 | . . . 1 1 . Hackware 3 | . . . 1 . 2 Protection 6 | . . 2 1 2 1 Artifact . | . . . . . . Weapon 21 | 3 2 4 1 8 3 Energy Gun 4 | 2 . 1 . 1 . Energy Cannon 1 | . . . . 1 . Ballistic Gun 9 | 1 1 2 1 3 1 Ballistic Cannon 4 | . 1 1 . . 2 Launcher 1 | . . . . 1 . Special Weapon . | . . . . . . Impact Weapon . | . . . . . . Slashing Weapon 1 | . . . . 1 . Piercing Weapon . | . . . . . . Special Melee Weapon 1 | . . . . 1 . Unidentified Prototypes 2 | . . 1 1 . . Parts Lost 24 | . 4 2 4 13 1 Power 3 | . 1 . 1 1 . Propulsion 9 | . 2 1 2 3 1 Utility 6 | . . . 1 5 . Weapon 6 | . 1 1 . 4 . Highest Loss Streak 7 | . 4 2 4 7 1 To Critical Strikes 1 | . . . . . 1 Average Backups 12 | 2 7 10 15 15 17 Power 1 | . 1 1 . . 1 Propulsion 1 | 1 1 1 2 1 . Utility 4 | . 1 2 5 6 8 Weapon 4 | . 2 4 5 5 5 Tool/Special . | . . . . . . Unused Backups 28 | . 4 5 1 4 14 Power 4 | . . 2 . . 2 Propulsion 4 | . 2 1 . 1 . Utility 12 | . 2 . . 2 8 Weapon 7 | . . 2 1 1 3 Tool/Special 1 | . . . . . 1 Average Slot Usage (%) 90 | . 97 90 82 85 97 Engine 10 | . 13 11 8 7 9 Treads 8 | . 23 4 3 3 . Wheel 11 | . 4 17 13 12 17 Device 13 | . 11 17 9 14 9 Storage 10 | . 14 11 9 9 9 Processor 3 | . . . 7 4 9 Hackware 4 | . . . 3 9 12 Protection 5 | . . 7 8 5 12 Energy Gun 2 | . 5 . . 1 . Ballistic Gun 11 | . 10 17 9 10 10 Ballistic Cannon 5 | . 11 4 9 . 1 Slashing Weapon 1 | . . . . 2 . Peak Build Rating 30 | 6 8 18 22 30 30 Average Rating 16 | 4 6 13 20 23 25 On Entrance 12 | . 6 7 18 21 22 Naked Turns . | . . . . . . Heaviest Build 70 | 11 51 70 70 64 69 Greatest Support 40 | 26 40 40 20 24 22 Greatest Overweight (x) 6 | . 1 5 5 6 4 Average Overweight (x) 2 | . . 2 3 3 2 Largest Inventory Capacity 20 | 8 20 20 20 20 20 Average Capacity 19 | 6 17 20 20 20 20 Most Carried 20 | 6 10 15 17 20 20 Average Carried 13 | 3 7 10 15 17 17 Final Capacity 20 | 8 20 20 20 20 20 Final Carried 19 | 6 9 15 15 19 18 Class Distribution -------------------- 72% | Mutant 19% | Scavenger-Mutant 7% | Bothacker-Mutant Dominant Class ---------------- Mutant | -10/Materials Mutant | -9/Materials Mutant | -8/Materials Scavenger-Mutant | -8/Garrison Bothacker-Mutant | -8/Materials Resources | -11 -10 -9 -8 -8 -8 ----------- Run | Yrd Mat Mat Mat Gar Mat Matter Collected 2254 | 270 533 396 127 721 207 Remotely . | . . . . . . Salvage Created 2813 | . 536 793 145 1129 210 Parts 157 | . 33 45 10 54 15 Haulers Intercepted . | . . . . . . Recyclers Shooed . | . . . . . . Parts Field Recycled . | . . . . . . Retrieved Matter . | . . . . . . Parts Self-Destructed . | . . . . . . Prevented . | . . . . . . Kills | -11 -10 -9 -8 -8 -8 ------- Run | Yrd Mat Mat Mat Gar Mat Combat Hostiles Destroyed 72 | . 18 21 3 26 4 Melee 3 | . . . . 3 . Guns 44 | . 12 14 2 13 3 Cannons 17 | . 6 7 1 2 1 AOE 8 | . . . . 8 . Classes Destroyed 7 | . 3 2 1 1 . Operator 2 | . 1 . 1 . . Swarmer 20 | . 6 3 . 11 . Grunt 33 | . 12 11 . 10 . Brawler 2 | . . . . 2 . Duelist 1 | . . 1 . . . Sentry 15 | . . 6 2 3 4 Hunter 1 | . . . 1 . . Best Kill Streak 5 | . 5 4 1 4 1 Combat Bots Only 5 | . 5 4 1 4 1 Max Kills in Single Turn 3 | . 1 2 1 3 1 Gunslinging 1 | . . 1 . . . Exploded 3 | . . . . 3 . Melee 1 | . . . . 1 . Uniques/NPCs Destroyed . | . . . . . . Combat | -11 -10 -9 -8 -8 -8 -------- Run | Yrd Mat Mat Mat Gar Mat Hostile Shots Fired 421 | . 84 99 16 209 13 Missed 125 | . 21 26 4 70 4 Hits 296 | . 63 73 12 139 9 Melee 3 | . . 1 . 2 . Projectile 293 | . 63 72 12 137 9 Critical Strikes 8 | . 1 4 . 1 2 Damage Taken 4237 | . 766 883 183 2275 130 Core 821 | . 109 152 17 514 29 Absorbed by Shields . | . . . . . . Core Remaining (%) 72 | 100 56 62 . . . Volleys Fired 190 | . 56 57 11 58 8 Largest 2 | . 2 2 2 2 2 Hottest 86 | . 80 53 53 86 80 Shots Fired 362 | . 112 113 22 98 17 Gun 272 | . 74 92 11 82 13 Cannon 84 | . 38 21 11 10 4 Launcher 6 | . . . . 6 . Special . | . . . . . . Kinetic 322 | . 81 113 22 89 17 Thermal 32 | . 31 . . 1 . Explosive 6 | . . . . 6 . Electromagnetic 2 | . . . . 2 . Robot Hit Streak 28 | . 6 21 28 8 8 Robot Miss Streak 6 | . 3 6 2 4 1 Penetration Max . | . . . . . . Secondary Targets 4 | . 1 1 . 2 . Max Gunslinging Chain 1 | . 1 1 . 1 . Shots Hit Robots 265 | . 65 82 15 89 14 Core Hits 129 | . 31 37 8 47 6 Critical Kills . | . . . . . . Critical Parts Destroyed . | . . . . . . Critical Strikes 10 | . 3 1 . 6 . Burn 1 | . 1 . . . . Blast 3 | . 2 1 . . . Sever 6 | . . . . 6 . Melee Attacks 46 | . . . . 44 2 Impact . | . . . . . . Slashing 44 | . . . . 44 . Piercing . | . . . . . . Sneak Attacks 1 | . . . . 1 . Combat Hostiles 1 | . . . . 1 . Follow-up Attacks . | . . . . . . Damage Inflicted 5199 | . 814 1002 216 2935 232 Guns 2221 | . 428 711 95 837 150 Cannons 1007 | . 386 291 121 127 82 Explosions 614 | . . . . 614 . Melee 1357 | . . . . 1357 . Ramming . | . . . . . . Kinetic 3018 | . 604 1002 216 964 232 Thermal 210 | . 210 . . . . Explosive 614 | . . . . 614 . Electromagnetic . | . . . . . . Impact . | . . . . . . Slashing 1357 | . . . . 1357 . Piercing . | . . . . . . Highest Corruption 16 | . 1 . . 16 16 Average Corruption 9 | . 1 . . 16 16 Corruption Purged . | . . . . . . Corruption Blocked . | . . . . . . Effects 77 | . 7 . . 49 21 Message Errors 23 | . 2 . . 14 7 Matter Fused 16 | . 2 . . 8 6 Heat Flow Errors 10 | . 1 . . 8 1 Energy Discharges 10 | . 2 . . 4 4 Parts Fused 1 | . . . . 1 . Data Loss (minor) 10 | . . . . 8 2 Data Loss (major) 2 | . . . . 2 . Misfires 3 | . . . . 2 1 Alerts 2 | . . . . 2 . Overload Shots . | . . . . . . Overflow Damage 163 | . . . . 163 . Projectiles . | . . . . . . Explosions 33 | . . . . 33 . Melee 130 | . . . . 130 . Knockbacks 10 | . 7 1 . 2 . Impact . | . . . . . . Kinetic 8 | . 6 1 . 1 . Secondary 2 | . 1 . . 1 . Self-Inflicted Damage 165 | . . . . 165 . Shots 2 | . . . . 2 . Rammed . | . . . . . . Targets Rammed . | . . . . . . Kicked . | . . . . . . Crushed . | . . . . . . Highest Temperature 255 | . 255 173 . 214 183 Average Temperature 82 | . 84 73 . 82 69 Received Heat Transfer 1428 | . 396 330 27 612 63 Effects 1 | . 1 . . . . Energy Bleed 1 | . 1 . . . . Siege Activations . | . . . . . . Martial Activations . | . . . . . . Shielding Activations . | . . . . . . Robots Disrupted . | . . . . . . Combat Hostiles . | . . . . . . Robots Corrupted . | . . . . . . Combat Hostiles . | . . . . . . Parts Fried . | . . . . . . Impact Corruptions . | . . . . . . Robots Melted . | . . . . . . Combat Hostiles . | . . . . . . Parts Melted 1 | . 1 . . . . Heat Transferred 703 | . 703 . . . . Parts Sabotaged . | . . . . . . Parts Stolen . | . . . . . . Parts Stripped . | . . . . . . Power Chain Reactions . | . . . . . . Alert | -11 -10 -9 -8 -8 -8 ------- Run | Yrd Mat Mat Mat Gar Mat Maximum Alert Level 4 | . . 1 . 4 2 Low Security (%) 52 | 100 100 36 100 24 . Level 1 18 | . . 63 . 17 5 Level 2 13 | . . . . 16 94 Level 3 10 | . . . . 28 . Level 4 4 | . . . . 12 . Level 5 . | . . . . . . High Security . | . . . . . . Max Security . | . . . . . . Peak Influence 1133 | . 124 291 117 1133 547 Initial 547 | . . 17 117 14 547 Average 298 | . 46 199 39 565 450 Influence Increases 2647 | . 492 679 95 1239 142 Destroy 0b10 Robot/C 1460 | . 360 420 60 520 100 Destroy 0b10 Robot/NC 40 | . 5 . 5 30 . Destroy Leader 290 | . 70 120 30 30 40 Allied During Kill 1 | . . . . . 1 Trap Triggered on 0b10 10 | . . . . 10 . Successful Hack 60 | . 27 33 . . . Disable Machine 120 | . 30 . . 90 . Anti-Garrison Action 400 | . . . . 400 . Destroy Structure 86 | . . 1 . 84 1 Lose Combat Pursuer 180 | . . 105 . 75 . Influence Decreases 2210 | . 450 442 352 138 828 Entered New Map 771 | . . 25 162 8 576 Time Decay 1192 | . 410 397 163 . 222 Lost Part 227 | . 40 20 27 130 10 Lost Ally 20 | . . . . . 20 Squads Dispatched 6 | . 3 3 . . . Investigation 3 | . 2 1 . . . Extermination . | . . . . . . Reinforcement 3 | . 1 2 . . . Assault . | . . . . . . Garrison . | . . . . . . Intercept . | . . . . . . Searches Triggered . | . . . . . . Construction Impeded . | . . . . . . Haulers Reinforced . | . . . . . . Active Scanning Responses . | . . . . . . Cargo Convoy Interrupts . | . . . . . . Stealth | -11 -10 -9 -8 -8 -8 --------- Run | Yrd Mat Mat Mat Gar Mat Distress Signals 6 | . 3 1 2 . . Communications Jammed . | . . . . . . Distress Signals . | . . . . . . Times Spotted 109 | . 30 31 6 33 9 Peak Tracking Total 8 | . 7 8 3 5 2 Tactical Retreats 9 | . . 4 . 5 . Traps | -11 -10 -9 -8 -8 -8 ------- Run | Yrd Mat Mat Mat Gar Mat Traps Triggered 11 | . 3 1 . 7 . Indirectly . | . . . . . . Trap Hack Attempts 12 | . . . . 12 . Triggered . | . . . . . . Disarmed 1 | . . . . 1 . Reprogrammed 1 | . . . . 1 . Reused 1 | . . . . 1 . Traps Extracted . | . . . . . . Installed 3 | . . . . 3 . Triggered 1 | . . . . 1 . Most Traps Carried 6 | . . . . 6 . Machines | -11 -10 -9 -8 -8 -8 ---------- Run | Yrd Mat Mat Mat Gar Mat Machines Disabled 13 | . 2 . . 11 . Max in Single Turn 2 | . 1 . . 2 . Garrison Relay 4 | . . . . 4 . Phase Generator 1 | . . . . 1 . Machines Repaired . | . . . . . . Machines Dismantled . | . . . . . . Machines Sabotaged . | . . . . . . Overloaded Fab Kills . | . . . . . . Hacking | -11 -10 -9 -8 -8 -8 --------- Run | Yrd Mat Mat Mat Gar Mat Machines Accessed 13 | . 6 5 2 . . Terminals 12 | . 6 5 1 . . Fabricators . | . . . . . . Repair Stations . | . . . . . . Recycling Units . | . . . . . . Scanalyzers . | . . . . . . Garrison Access 1 | . . . 1 . . Total Hacks 34 | . 15 16 3 . . Successful 24 | . 11 11 2 . . Failed 10 | . 4 5 1 . . Catastrophic . | . . . . . . Database Lockouts . | . . . . . . Manual 13 | . 6 5 2 . . Terminals 33 | . 15 16 2 . . Fabricators . | . . . . . . Repair Stations . | . . . . . . Recycling Units . | . . . . . . Scanalyzers . | . . . . . . Garrison Access 1 | . . . 1 . . Terminal Hacks 12 | . 6 6 . . . Record 2 | . 2 . . . . Robot Analysis 2 | . 1 1 . . . Prototype ID Bank 1 | . 1 . . . . Branch Access Points 1 | . . 1 . . . Emergency Access Points 1 | . . 1 . . . Locate Traps 3 | . 2 1 . . . Zone Layout 2 | . . 2 . . . Fabricator Hacks . | . . . . . . Repair Station Hacks . | . . . . . . Recycling Unit Hacks . | . . . . . . Scanalyzer . | . . . . . . Garrison Access Hacks 1 | . . . 1 . . Unlock Access 1 | . . . 1 . . Unauthorized Hacks 11 | . 5 5 1 . . Terminals 11 | . 5 5 1 . . Botnet 11 | . 5 5 1 . . Fabricators . | . . . . . . Repair Stations . | . . . . . . Recycling Units . | . . . . . . Scanalyzers . | . . . . . . Garrison Access . | . . . . . . Data Cores Recovered 1 | . . . 1 . . Used . | . . . . . . Hacking Detections 8 | . 3 4 1 . . Full Trace Events 1 | . 1 . . . . Feedback Events . | . . . . . . Feedback Blocked . | . . . . . . Robot Schematics Acquired . | . . . . . . Robots Built . | . . . . . . Authchips . | . . . . . . Time . | . . . . . . Total Robot Build Rating . | . . . . . . Part Schematics Acquired . | . . . . . . Parts Built . | . . . . . . Authchips . | . . . . . . Time . | . . . . . . Total Part Build Rating . | . . . . . . Parts Repaired . | . . . . . . Time . | . . . . . . Parts Recycled . | . . . . . . Recycled Matter . | . . . . . . Retrieved Matter . | . . . . . . Retrieved Components . | . . . . . . Parts Scanalyzed . | . . . . . . Part Schematics Acquired . | . . . . . . Parts Damaged . | . . . . . . Bothacking | -11 -10 -9 -8 -8 -8 ------------ Run | Yrd Mat Mat Mat Gar Mat Used RIF Installer 1 | . . . . 1 . Robots Hacked 2 | . . . . . 2 Non-combat . | . . . . . . Combat 2 | . . . . . 2 Robot Hacks Applied 2 | . . . . . 2 streamctrl_high 1 | . . . . . 1 formatsys_high 1 | . . . . . 1 Relay Couplers Released 13 | . . . . 13 . Machine Destruction 13 | . . . . 13 . Attached 2 | . . . . . 2 Fabnet Peak Effective % . | . . . . . . Robots Rewired . | . . . . . . Allies Hacked . | . . . . . . Hacks Repelled . | . . . . . . Allies | -11 -10 -9 -8 -8 -8 -------- Run | Yrd Mat Mat Mat Gar Mat Total Allies 2 | . . . . . 2 Largest Group 1 | . . . . . 1 Highest-Rated Group 15 | . . . . . 15 Highest-Rated Ally 15 | . . . . . 15 Total Orders . | . . . . . . Ally Attacks 5 | . . . . . 5 Total Damage 124 | . . . . . 124 Kills 1 | . . . . . 1 Allies Corrupted . | . . . . . . Allies Melted . | . . . . . . Intel | -11 -10 -9 -8 -8 -8 ------- Run | Yrd Mat Mat Mat Gar Mat Active Infowar (turns) 2032 | . . . . 1564 468 Optics 1203 | . . . . 735 468 Traps 829 | . . . . 829 . Robot Analysis Total 2 | . 1 1 . . . Derelict Logs Recovered . | . . . . . . Drone Launches . | . . . . . . Drone Recoveries . | . . . . . . Exploration | -11 -10 -9 -8 -8 -8 ------------- Run | Yrd Mat Mat Mat Gar Mat Turns Passed 5587 | 65 1576 983 428 2067 468 Spaces Moved 2930 | 57 681 516 251 1161 264 Core 4 | 4 . . . . . Treads 536 | . 495 41 . . . Legs . | . . . . . . Wheels 2390 | 53 186 475 251 1161 264 Hover . | . . . . . . Flight . | . . . . . . Fastest Speed 50 | 50 90 110 110 105 115 Average Speed 148 | 85 197 129 137 141 116 Slowest Speed 240 | 90 240 240 155 170 150 Overloaded Moves . | . . . . . . Propulsion Burnouts . | . . . . . . Robots Hopped . | . . . . . . Potential Cave-ins . | . . . . . . Cave-ins Triggered 1 | . . . . 1 . Exploration Rate (%) 46 | 3 95 52 24 86 21 Regions Visited 5 Branch Regions . Pre-discovered Areas . | . . . . . . Known Exits Taken 1 | . . . 1 . . Unknown Exits Taken 3 | 1 1 1 . . . Scrap Searched . | . . . . . . Spaces Dug . | . . . . . . Terrain Destroyed 109 | . . . . 108 1 Melee . | . . . . . . Projectile 1 | . . . . . 1 AOE 108 | . . . . 108 . Terrain Rammed . | . . . . . . Walls Destroyed . | . . . . . . Machines Disabled . | . . . . . . Actions | -11 -10 -9 -8 -8 -8 --------- Run | Yrd Mat Mat Mat Gar Mat Total 3751 | 71 814 730 311 1417 408 Wait 316 | . 51 113 35 4 113 Move 2925 | 56 680 515 250 1160 264 Hop . | . . . . . . Pick Up 73 | 7 13 20 6 20 7 Fast Attach 19 | 5 1 1 2 9 1 Attach 28 | 2 4 5 4 10 3 Detach 7 | 1 . . . 6 . Swap 35 | . 2 7 1 21 4 Drop 40 | . 7 12 2 14 5 Fire 190 | . 56 57 11 58 8 Melee 46 | . . . . 44 2 Ram . | . . . . . . Kick . | . . . . . . Crush . | . . . . . . Escape Stasis 56 | . . . . 56 . Rewire 1 | . . . . . 1 Trap 15 | . . . . 15 . Miscellaneous . | . . . . . . Route ------- -11/Scrapyard -10/Materials (discovered 5 exits: *Mat x3 / [*Min x2]) -9/Materials (discovered 3 exits: *Mat x2 / Min) -8/Materials (discovered 2 exits: [*Fac] / Gar) -8/Garrison (discovered 4 exits: [*Fac x3] / *Mat) -8/Materials (discovered 1 exit: [*Fac]) History --------- Turn | Location | Event 11 | -11/Scrapyard | Discovered new exit (range 16) 66 | -11/Scrapyard | Entered Materials 225 | -10/Materials | Discovered new exit (range 16) 353 | -10/Materials | Lost 4 parts (1p2n1w) 379 | -10/Materials | Build established: Mutant 508 | -10/Materials | Discovered new exit (range 8) 760 | -10/Materials | Discovered new exit (range 15) 1033 | -10/Materials | Discovered new exit (range 15) 1448 | -10/Materials | Discovered new exit (range 16) 1642 | -10/Materials | Entered another Materials area 1642 | -9/Materials | Evolved 2 slots: Utility x2 2071 | -9/Materials | Discovered new exit (range 14) 2557 | -9/Materials | Discovered new exit (range 6) 2580 | -9/Materials | Identified exit to Mines 2625 | -9/Materials | Entered another Materials area 2625 | -8/Materials | Evolved 2 slots: Utility x2 2821 | -8/Materials | Discovered new exit (range 3) 2885 | -8/Materials | Lost 4 parts (1p2n1u) 3052 | -8/Materials | Identified exit to Garrison 3053 | -8/Materials | Entered Garrison 3309 | -8/Garrison | Triggered checkpoint 3331 | -8/Garrison | Triggered checkpoint 3543 | -8/Garrison | Triggered checkpoint 3600 | -8/Garrison | Discovered new exit (range 5) 3671 | -8/Garrison | Triggered checkpoint 3882 | -8/Garrison | Triggered checkpoint 3985 | -8/Garrison | Triggered checkpoint 4004 | -8/Garrison | Crushed by falling debris 4004 | -8/Garrison | System corruption reached 10% 4024 | -8/Garrison | Core integrity fell below 50% 4035 | -8/Garrison | Lost 7 parts (1p1n3u2w) 4111 | -8/Garrison | Discovered new exit (range 14) 4181 | -8/Garrison | Garrison Relay disabled 4254 | -8/Garrison | Triggered checkpoint 4303 | -8/Garrison | Discovered new exit (range 13) 4333 | -8/Garrison | Triggered checkpoint 4390 | -8/Garrison | Garrison Relay disabled 4409 | -8/Garrison | Build established: Scavenger-Mutant 4551 | -8/Garrison | Phase Generator disabled 4551 | -8/Garrison | Discovered new exit (range 13) 4552 | -8/Garrison | Core integrity fell below 20% 4599 | -8/Garrison | Triggered checkpoint 4689 | -8/Garrison | Garrison Relay disabled 5039 | -8/Garrison | Installed Relay Interface Framework 5120 | -8/Garrison | Entered Materials 5355 | -8/Materials | Build established: Bothacker-Mutant 5533 | -8/Materials | Discovered new exit (range 5) 5588 | -8/Materials | Destroyed by H-55 Commando with Assault Rifle Last Messages --------------- Hvy. Assault Rifle. 05538_ System corrupted: Hvy. Assault Rifle misfires. 05538_ Acquired 3 matter. 05538_ U-05 Engineer lays Concrete. 05550_ Dropped Hvy. Assault Rifle. 05553_ Acquired Adv. Assault Cannon. 05559_ YIHRT8|EFXM4PC,E6N7Q 4&ZOIWJUS 05574_ System corrupted: Matter fused (-5). 05575_ K-01 Serf collects debris. 05575_ Y-45 Defender destroyed. 05578_ Acquired 41 matter. 05579_ K-01 Serf collects debris. 05579_ Acquired 6 matter. 05583_ K-01 Serf collects debris. 05583_ T-07 Excavator is excavating. 05586_ Acquired 2 matter. 05588_ Penetrated by Slug. 05588_ Critical hit (Destroy). 05588_ Arm. Wheel destroyed. Map ----- +----------------------------------------------------+ | ???????????????????????????????????????????????# | | ???????????????????????????????????????????????# | | ???????????????????????????????????????????????# | | ???????????????????????????????????????????????# | | ???????????????????????????????????????????????# | | ??????????????????????????????????????????????## | | ???????????????????????# #????????????????????# | | ?????????????????????? ????????????????????# | | ?????????????????????? ????????????????????+ | | ?????????????????????? ????????????????????# | | ?????????????????????? ????????????????????# | | ?????????????????????? ????????????????????### | | ??????????????????????# ??????????????????????# | | ??????????????????????# ??????????????????????# | | ??????????????????????# ???????????????####???# | | ??????????????????????+ +??????????????# ?### | | ??????????????????????#h #??????????????# # | | ??????????????????????# #??????????????# # | | ??????????????????????# #??????????????# + | | ??????????????????????# #??????????????# # | | ??????????????????????# #??########????# # | | ??????????????????????# #??#!!//[]#????# ?### | | ??????????????????????+ #??#!!//] #????# ???# | | ??????????????????????# #??# [ #????# ????# | | ??????????????????????# #??####[ ############# | | ??????????????????????# @####### =! | | ??????????????????????# =%= *%!############ | | ??????????????????????# [!! * ! #??????????? | | ??????????????????????# % #??????????? | | ??????????????????????# ### ### #??????????? | | ??????????????????????# ## #######??????????? | | ??????????????????????# < ## #????????????????? | | ??????????????????????# ## #????????????????? | | ??????????????????????###### #????????????????? | | ???????????????????????????# #????????????????? | | ???????????????????????????## ##????????????????? | | ?????????????????????????????###?????????????????? | | ?????????????????????????????????????????????????? | | ?????????????????????????????????????????????????? | | ?????????????????????????????????????????????????? | | ?????????????????????????????????????????????????? | | | | | | | | | | | | | | | | | | | +----------------------------------------------------+ Best States ------------- Heat Dissipation 60 Energy Generation 14 Energy Capacity 265 Matter Stores 300 Matter Capacity 300 Sight Range 20 Terrain Scan Density 10 Armor Coverage 600 Evasion (%) 44 Targeting Accuracy 8 Recoil Reduction 2 Offensive Hacking 10 Relay Coupler Types 2 Relay Coupler Value 52 Trap Extractor Capacity 4 Item Schematics ----------------- None Robot Schematics ------------------ None Fabricated ------------ Nothing Repaired ---------- Nothing Alien Tech Used ----------------- None Achievements -------------- None Challenges ------------ None Game ------ Seed RefineryHelicalMount Manual? 0 Play Time 00:57:30 Cumulative 147.3 hours Start 2025.06.22 @ 00:33:10 End 2025.06.22 @ 01:26:16 Sessions 1 Manual Loads 0 Difficulty Rogue Special Mode None Game No. 230 Rogue 230 Adventurer 0 Explorer 0 Win Type - Total 1 Types 1/0/0/0/0/0/0/0/0/0 Lore% 19 Gallery% 43 Achievement% 44 Wizard Run 0 Options --------- Layout 2 ASCII 0 Keyboard 0 Movement Mouse Keybinds 0 Fullscreen 1 Font 24/Smallcaps Map View 50x44 Zoom Use 0% Tactical HUD 1 Map Filters NONE Filters NONE Steam 1 RUN: 151bde48-afcf-4c01-8e51-71f8850d3e70